fUST/lending_fUST_20250602
["ID","MTS","AMOUNT","RATE_DAILY","PERIOD"]
[363657292,1748800245532,-430.0,0.00016986,2]
[363657294,1748800245542,-430.0,0.00016986,2]
[363657296,1748800245552,-280.43864885,0.00016986,2]
[363657298,1748800245565,-430.0,0.00016986,2]
[363657300,1748800245575,-430.0,0.00016986,2]
[363657302,1748800245585,-430.0,0.00016986,2]
[363657304,1748800245595,-216.6070701,0.00016986,2]
[363657306,1748800245606,-537.06,0.00016986,2]
[363657308,1748800245616,-430.0,0.00016986,2]
[363657310,1748800245626,-430.0,0.00016986,2]
[363657312,1748800245637,-430.0,0.00016986,2]
[363657314,1748800245647,-430.0,0.00016986,2]
[363657316,1748800245656,-705.3,0.00016986,2]
[363657318,1748800245666,-430.0,0.00016986,2]
[363657320,1748800245676,-798.38,0.00016986,2]
[363657322,1748800245685,-537.89,0.00016986,2]
[363657324,1748800245694,-430.0,0.00016986,2]
[363657326,1748800245704,-430.0,0.00016986,2]
[363657328,1748800245714,-1192.28,0.00016986,2]
[363657330,1748800245723,-430.0,0.00016986,2]
[363657332,1748800245733,-430.0,0.00016986,2]
[363657334,1748800245742,-430.0,0.00016986,2]
[363657336,1748800245753,-430.0,0.00016986,2]
[363657338,1748800245763,-430.0,0.00016986,2]
[363657340,1748800245773,-430.0,0.00016986,2]
[363657342,1748800245782,-741.74,0.00016986,2]
[363657344,1748800245793,-430.0,0.00016986,2]
[363657346,1748800245802,-1144.57,0.00016986,2]
[363657348,1748800245812,-430.0,0.00016986,2]
[363657350,1748800245822,-430.0,0.00016986,2]
[363657352,1748800245832,-360.61050951,0.00016986,2]
[363657355,1748800245842,-430.0,0.00016986,2]
[363657357,1748800245853,-500.0,0.00017021,2]
[363657359,1748800245863,-500.0,0.00017021,2]
[363657361,1748800245873,-435.52355721,0.00017021,2]
[363657363,1748800245883,-3437.60975399,0.00017141,2]
[363657365,1748800245892,-430.0,0.0001726,2]
[363657366,1748800245902,-430.0,0.0001726,2]
[363657369,1748800245912,-462.80588903,0.0001726,2]
[363657371,1748800245923,-430.0,0.0001726,2]
[363657373,1748800245933,-430.0,0.0001726,2]
[363657375,1748800245943,-1583.33,0.0001726,2]
[363657377,1748800245955,-430.0,0.0001726,2]
[363657379,1748800245965,-196.19695185,0.0001726,2]
[363657381,1748800245974,-430.0,0.0001726,2]
[363657383,1748800245983,-430.0,0.0001726,2]
[363657385,1748800245994,-505.74,0.0001726,2]
[363657387,1748800246003,-430.0,0.0001726,2]
[363657389,1748800246013,-430.0,0.0001726,2]
[363657391,1748800246025,-773.78,0.0001726,2]
[363657393,1748800246035,-469.54,0.0001726,2]
[363657395,1748800246044,-430.0,0.0001726,2]
[363657397,1748800246055,-430.0,0.0001726,2]
[363657399,1748800246065,-430.0,0.0001726,2]
[363657401,1748800246075,-430.0,0.0001726,2]
[363657403,1748800246085,-430.0,0.0001726,2]
[363657405,1748800246095,-430.0,0.0001726,2]
[363657407,1748800246105,-430.0,0.0001726,2]
[363657409,1748800246115,-430.0,0.0001726,2]
[363657411,1748800246124,-430.0,0.0001726,2]
[363657413,1748800246134,-430.0,0.0001726,2]
[363657415,1748800246143,-430.0,0.0001726,2]
[363657417,1748800246153,-430.0,0.0001726,2]
[363657419,1748800246163,-430.0,0.0001726,2]
[363657421,1748800246172,-430.0,0.0001726,2]
[363657423,1748800246183,-430.0,0.0001726,2]
[363657425,1748800246193,-430.0,0.0001726,2]
[363657427,1748800246203,-430.0,0.0001726,2]
[363657429,1748800246213,-430.0,0.0001726,2]
[363657431,1748800246226,-430.0,0.0001726,2]
[363657433,1748800246236,-430.0,0.0001726,2]
[363657435,1748800246247,-430.0,0.0001726,2]
[363657437,1748800246257,-430.0,0.0001726,2]
[363657439,1748800246267,-430.0,0.0001726,2]
[363657441,1748800246277,-430.0,0.0001726,2]
[363657443,1748800246287,-451.53644999,0.0001726,2]
[363657445,1748800246296,-430.0,0.0001726,2]
[363657447,1748800246306,-429.94939126,0.0001726,2]
[363657449,1748800246315,-705.3,0.0001726,2]
[363657451,1748800246325,-798.38,0.0001726,2]
[363657453,1748800246335,-537.89,0.0001726,2]
[363657455,1748800246344,-430.0,0.0001726,2]
[363657457,1748800246354,-430.0,0.0001726,2]
[363657459,1748800246364,-1192.28,0.0001726,2]
[363657462,1748800246374,-430.0,0.0001726,2]
[363657463,1748800246384,-430.0,0.0001726,2]
[363657466,1748800246395,-430.0,0.0001726,2]
[363657467,1748800246403,-430.0,0.0001726,2]
[363657469,1748800246413,-741.74,0.0001726,2]
[363657471,1748800246423,-430.0,0.0001726,2]
[363657473,1748800246432,-1144.57,0.0001726,2]
[363657475,1748800246442,-430.0,0.0001726,2]
[363657477,1748800246451,-430.0,0.0001726,2]
[363657479,1748800246461,-3437.60975399,0.00017383,2]
[363657481,1748800246471,-276.74373577,0.00017396,2]
[363657483,1748800246480,-443.2320868,0.00017534,2]
[363657485,1748800246490,-430.0,0.00017534,2]
[363657487,1748800246500,-430.0,0.00017534,2]
[363657489,1748800246510,-1583.33,0.00017534,2]
[363657491,1748800246520,-264.55523875,0.00017534,2]
[363657493,1748800246530,-505.74,0.00017534,2]
[363657495,1748800246539,-430.0,0.00017534,2]
[363657497,1748800246549,-773.78,0.00017534,2]
[363657499,1748800246561,-469.54,0.00017534,2]
[363657501,1748800246572,-450.06,0.00017534,2]
[363657503,1748800246581,-430.0,0.00017534,2]
[363657505,1748800246591,-430.0,0.00017534,2]
[363657507,1748800246601,-430.0,0.00017534,2]
[363657509,1748800246611,-430.0,0.00017534,2]
[363657511,1748800246622,-344.18,0.00017534,2]
[363657513,1748800246631,-430.0,0.00017534,2]
[363657515,1748800246641,-430.0,0.00017534,2]
[363657517,1748800246651,-430.0,0.00017534,2]
[363657519,1748800246660,-430.0,0.00017534,2]
[363657521,1748800246670,-705.3,0.00017534,2]
[363657523,1748800246680,-798.38,0.00017534,2]
[363657525,1748800246690,-537.89,0.00017534,2]
[363657527,1748800246699,-430.0,0.00017534,2]
[363657529,1748800246708,-1192.28,0.00017534,2]
[363657531,1748800246718,-430.0,0.00017534,2]
[363657533,1748800246730,-430.0,0.00017534,2]
[363657535,1748800246739,-430.0,0.00017534,2]
[363657537,1748800246749,-741.74,0.00017534,2]
[363657539,1748800246758,-1144.57,0.00017534,2]
[363657541,1748800246768,-430.0,0.00017534,2]
[363657543,1748800246777,-9345.25815382,0.00017585,2]
[363657545,1748800246786,-3437.60975399,0.00017624,2]
[363657547,1748800246796,-2445.88781194,0.00017729,2]
[363657549,1748800246806,-430.0,0.00017808,2]
[363657551,1748800246815,-430.0,0.00017808,2]
[363657553,1748800246825,-1583.33,0.00017808,2]
[363657555,1748800246835,-505.74,0.00017808,2]
[363657557,1748800246844,-469.54,0.00017808,2]
[363657559,1748800246853,-773.78,0.00017808,2]
[363657561,1748800246862,-430.0,0.00017808,2]
[363657563,1748800246872,-430.0,0.00017808,2]
[363657565,1748800246881,-430.0,0.00017808,2]
[363657567,1748800246891,-562.65960666,0.00017808,2]
[363657569,1748800246900,-387.04,0.00017808,2]
[363657571,1748800246910,-430.0,0.00017808,2]
[363657573,1748800246919,-430.0,0.00017808,2]
[363657575,1748800246929,-705.3,0.00017808,2]
[363657577,1748800246939,-798.38,0.00017808,2]
[363657579,1748800246948,-537.89,0.00017808,2]
[363657581,1748800246959,-218.13,0.00017808,2]
[363657583,1748800246969,-1192.28,0.00017808,2]
[363657585,1748800246978,-430.0,0.00017808,2]
[363657587,1748800246988,-430.0,0.00017808,2]
[363657589,1748800246999,-430.0,0.00017808,2]
[363657591,1748800247008,-741.74,0.00017808,2]
[363657593,1748800247019,-1144.57,0.00017808,2]
[363657595,1748800247030,-430.0,0.00017808,2]
[363657597,1748800247042,-420.0,0.00017856,2]
[363657599,1748800247051,-3437.60975399,0.00017866,2]
[363657601,1748800247061,-420.0,0.00017954,2]
[363657603,1748800247071,-420.0,0.00017954,2]
[363657605,1748800247081,-420.0,0.00017954,2]
[363657607,1748800247091,-182.95,0.00018,2]
[363657609,1748800247100,-182.95,0.00018,2]
[363657611,1748800247109,-1680.0,0.00018043,2]
[363657613,1748800247119,-430.0,0.00018082,2]
[363657615,1748800247129,-430.0,0.00018082,2]
[363657617,1748800247139,-1583.33,0.00018082,2]
[363657619,1748800247150,-505.74,0.00018082,2]
[363657621,1748800247161,-773.78,0.00018082,2]
[363657623,1748800247172,-469.54,0.00018082,2]
[363657625,1748800247183,-333.69261158,0.00018082,2]
[363657627,1748800247193,-430.0,0.00018082,2]
[363657629,1748800247203,-430.0,0.00018082,2]
[363657631,1748800247214,-577.07,0.00018082,2]
[363657633,1748800247224,-430.0,0.00018082,2]
[363657635,1748800247234,-705.3,0.00018082,2]
[363657637,1748800247244,-798.38,0.00018082,2]
[363657639,1748800247255,-537.89,0.00018082,2]
[363657641,1748800247265,-1192.28,0.00018082,2]
[363657643,1748800247275,-153.17,0.00018082,2]
[363657645,1748800247286,-430.0,0.00018082,2]
[363657647,1748800247296,-335.26,0.00018082,2]
[363657650,1748800247306,-741.74,0.00018082,2]
[363657651,1748800247317,-1144.57,0.00018082,2]
[363657654,1748800247333,-430.0,0.00018082,2]
[363657656,1748800247343,-3437.60975399,0.00018107,2]
[363657658,1748800247353,-3437.60975399,0.00018348,2]
[363657660,1748800247363,-548.87,0.00018356,2]
[363657662,1748800247372,-430.0,0.00018356,2]
[363657664,1748800247383,-1583.33,0.00018356,2]
[363657666,1748800247393,-505.74,0.00018356,2]
[363657668,1748800247403,-469.54,0.00018356,2]
[363657670,1748800247414,-773.78,0.00018356,2]
[363657672,1748800247423,-430.0,0.00018356,2]
[363657674,1748800247433,-430.0,0.00018356,2]
[363657676,1748800247443,-430.0,0.00018356,2]
[363657678,1748800247453,-705.3,0.00018356,2]
[363657680,1748800247463,-798.38,0.00018356,2]
[363657681,1748800247474,-537.89,0.00018356,2]
[363657682,1748800247483,-1192.28,0.00018356,2]
[363657689,1748800247587,-430.0,0.00018356,2]
[363657691,1748800247598,-741.74,0.00018356,2]
[363657693,1748800247610,-1144.57,0.00018356,2]
[363657695,1748800247619,-430.0,0.00018356,2]
[363657697,1748800247629,-160.0,0.00018369,2]
[363657699,1748800247640,-212.80060342,0.0001837,2]
[363657701,1748800247650,-160.0,0.0001837,2]
[363657703,1748800247660,-160.0,0.0001837,2]
[363657705,1748800247671,-842.5625,0.0001837,2]
[363657707,1748800247681,-423.51412927,0.0001837,2]
[363657710,1748800247691,-160.0,0.0001837,2]
[363657712,1748800247700,-229.3709046,0.0001837,2]
[363657714,1748800247711,-160.0,0.0001837,2]
[363657716,1748800247722,-276.74373577,0.00018463,2]
[363657718,1748800247733,-783.58,0.00018471,2]
[363657720,1748800247742,-3437.60975399,0.0001859,2]
[363657721,1748800247752,-430.0,0.0001863,2]
[363657723,1748800247763,-1583.33,0.0001863,2]
[363657726,1748800247775,-505.74,0.0001863,2]
[363657727,1748800247787,-469.54,0.0001863,2]
[363657730,1748800247798,-773.78,0.0001863,2]
[363657732,1748800247807,-430.0,0.0001863,2]
[363657734,1748800247818,-366.38122629,0.0001863,2]
[363657736,1748800247828,-430.0,0.0001863,2]
[363657738,1748800247839,-705.3,0.0001863,2]
[363657740,1748800247850,-798.38,0.0001863,2]
[363657742,1748800247860,-537.89,0.0001863,2]
[363657744,1748800247870,-1192.28,0.0001863,2]
[363657746,1748800247880,-338.51,0.0001863,2]
[363657748,1748800247889,-741.74,0.0001863,2]
[363657750,1748800247899,-1144.57,0.0001863,2]
[363657752,1748800247908,-430.0,0.0001863,2]
[363657754,1748800247917,-151.0,0.000187,2]
[363657756,1748800247927,-3437.60975399,0.00018831,2]
[363657758,1748800247936,-789.53798259,0.000189,2]
[363657760,1748800247945,-430.0,0.00018904,2]
[363657762,1748800247962,-1583.33,0.00018904,2]
[363657764,1748800247971,-505.74,0.00018904,2]
[363657766,1748800247981,-469.54,0.00018904,2]
[363657768,1748800247990,-773.78,0.00018904,2]
[363657770,1748800247999,-430.0,0.00018904,2]
[363657772,1748800248010,-430.0,0.00018904,2]
[363657774,1748800248019,-705.3,0.00018904,2]
[363657776,1748800248029,-798.38,0.00018904,2]
[363657778,1748800248039,-537.89,0.00018904,2]
[363657780,1748800248049,-1192.28,0.00018904,2]
[363657782,1748800248059,-741.74,0.00018904,2]
[363657784,1748800248068,-1144.57,0.00018904,2]
[363657786,1748800248077,-430.0,0.00018904,2]
[363657788,1748800248088,-3437.60975399,0.00019072,2]
[363657790,1748800248097,-2445.88781194,0.00019119,2]
[363657791,1748800248108,-889.22505401,0.00019177,2]
[363657793,1748800248118,-430.0,0.00019178,2]
[363657796,1748800248129,-1583.33,0.00019178,2]
[363657798,1748800248139,-505.74,0.00019178,2]
[363657800,1748800248149,-469.54,0.00019178,2]
[363657802,1748800248159,-773.78,0.00019178,2]
[363657804,1748800248168,-430.0,0.00019178,2]
[363657806,1748800248178,-430.0,0.00019178,2]
[363657808,1748800248188,-705.3,0.00019178,2]
[363657809,1748800248197,-798.38,0.00019178,2]
[363657812,1748800248208,-537.89,0.00019178,2]
[363657814,1748800248218,-1192.28,0.00019178,2]
[363657816,1748800248230,-741.74,0.00019178,2]
[363657818,1748800248240,-430.0,0.00019178,2]
[363657820,1748800248251,-430.0,0.00019178,2]
[363657822,1748800248261,-430.0,0.00019178,2]
[363657824,1748800248271,-430.0,0.00019178,2]
[363657826,1748800248282,-430.0,0.00019178,2]
[363657828,1748800248292,-430.0,0.00019178,2]
[363657830,1748800248302,-1144.57,0.00019178,2]
[363657832,1748800248312,-500.0,0.00019178,2]
[363657834,1748800248322,-500.0,0.00019178,2]
[363657835,1748800248332,-500.0,0.00019178,2]
[363657837,1748800248342,-500.0,0.00019178,2]
[363657840,1748800248352,-500.0,0.00019178,2]
[363657842,1748800248362,-407.29578035,0.00019178,2]
[363657844,1748800248372,-500.0,0.00019178,2]
[363657846,1748800248382,-500.0,0.00019178,2]
[363657848,1748800248392,-430.0,0.00019178,2]
[363657850,1748800248402,-151.0,0.00019178,2]
[363657852,1748800248412,-173.899304,0.00019178,2]
[363657854,1748800248422,-156.587,0.00019233,2]
[363657856,1748800248433,-500.0,0.0001925,2]
[363657858,1748800248444,-162.380719,0.00019288,2]
[363657860,1748800248454,-151.0,0.000193,2]
[363657862,1748800248465,-3437.60975399,0.00019314,2]
[363657864,1748800248475,-99862.49799776,0.00019329,2]
[363657866,1748800248486,-164.80710164,0.00019343,2]
[363657868,1748800248496,-500.0,0.00019345,2]
[363657870,1748800248506,-151.0,0.000194,2]
[363657872,1748800248515,-430.0,0.00019452,2]
[363657874,1748800248525,-1583.33,0.00019452,2]
[363657876,1748800248535,-505.74,0.00019452,2]
[363657878,1748800248544,-773.78,0.00019452,2]
[363657880,1748800248554,-469.54,0.00019452,2]
[363657882,1748800248563,-430.0,0.00019452,2]
[363657884,1748800248573,-430.0,0.00019452,2]
[363657886,1748800248586,-705.3,0.00019452,2]
[363657888,1748800248596,-798.38,0.00019452,2]
[363657890,1748800248607,-537.89,0.00019452,2]
[363657892,1748800248618,-1192.28,0.00019452,2]
[363657894,1748800248628,-741.74,0.00019452,2]
[363657896,1748800248640,-1144.57,0.00019452,2]
[363657898,1748800248649,-430.0,0.00019452,2]
[363657900,1748800248661,-587.0,0.00019516,2]
[363657902,1748800248671,-276.74373577,0.00019529,2]
[363657904,1748800248682,-3437.60975399,0.00019555,2]
[363657906,1748800248692,-358.169,0.00019557,2]
[363657908,1748800248702,-543.0,0.00019622,2]
[363657910,1748800248712,-587.0,0.00019622,2]
[363657912,1748800248723,-587.0,0.00019622,2]
[363657914,1748800248733,-650.46513158,0.00019644,2]
[363657916,1748800248743,-200.93,0.00019726,2]
[363657918,1748800248754,-1583.33,0.00019726,2]
[363657920,1748800248764,-505.74,0.00019726,2]
[363657922,1748800248774,-773.78,0.00019726,2]
[363657924,1748800248784,-469.54,0.00019726,2]
[363657926,1748800248794,-430.0,0.00019726,2]
[363657928,1748800248804,-430.0,0.00019726,2]
[363657930,1748800248813,-705.3,0.00019726,2]
[363657932,1748800248823,-798.38,0.00019726,2]
[363657934,1748800248834,-537.89,0.00019726,2]
[363657936,1748800248845,-1192.28,0.00019726,2]
[363657938,1748800248855,-741.74,0.00019726,2]
[363657940,1748800248866,-1144.57,0.00019726,2]
[363657942,1748800248875,-430.0,0.00019726,2]
[363657944,1748800248886,-3437.60975399,0.00019797,2]
[363657946,1748800248896,-1000.0,0.00019798,2]
[363657948,1748800248906,-2351.0,0.00019817,2]
[363657950,1748800248916,-1000.0,0.00019893,2]
[363657952,1748800248925,-151.0,0.000199,2]
[363657954,1748800248935,-268.17893077,0.00019943,2]
[363657956,1748800248945,-193.30573625,0.0002,2]
[363657958,1748800248955,-1583.33,0.0002,2]
[363657960,1748800248965,-505.74,0.0002,2]
[363657962,1748800248975,-773.78,0.0002,2]
[363657964,1748800248985,-469.54,0.0002,2]
[363657966,1748800248995,-430.0,0.0002,2]
[363657968,1748800249006,-430.0,0.0002,2]
[363657970,1748800249017,-705.3,0.0002,2]
[363657972,1748800249026,-798.38,0.0002,2]
[363657974,1748800249036,-537.89,0.0002,2]
[363657976,1748800249047,-1192.28,0.0002,2]
[363657979,1748800249058,-741.74,0.0002,2]
[363657980,1748800249068,-1144.57,0.0002,2]
[363657983,1748800249079,-430.0,0.0002,2]
[363657984,1748800249088,-1000.48023051,0.00020024,2]
[363657986,1748800249098,-3437.60975399,0.00020038,2]
[363657988,1748800249108,-500.0,0.00020067,2]
[363657991,1748800249119,-151.0,0.000201,4]
[363657992,1748800249129,-1567.16,0.0002015,2]
[363657995,1748800249139,-254.06478508,0.00020163,2]
[363657997,1748800249149,-1583.33,0.00020273,2]
[363657999,1748800249160,-505.74,0.00020273,2]
[363658001,1748800249169,-773.78,0.00020273,2]
[363658003,1748800249180,-469.54,0.00020273,2]
[363658005,1748800249190,-430.0,0.00020273,2]
[363658007,1748800249201,-430.0,0.00020273,2]
[363658009,1748800249211,-705.3,0.00020273,2]
[363658011,1748800249222,-798.38,0.00020273,2]
[363658013,1748800249233,-537.89,0.00020273,2]
[363658015,1748800249244,-1192.28,0.00020273,2]
[363658017,1748800249254,-741.74,0.00020273,2]
[363658019,1748800249264,-1144.57,0.00020273,2]
[363658021,1748800249275,-430.0,0.00020273,2]
[363658023,1748800249285,-3437.60975399,0.00020279,3]
[363658025,1748800249295,-369.90684858,0.00020346,2]
[363658027,1748800249306,-1500.0,0.00020441,2]
[363658030,1748800249318,-151.0,0.000205,3]
[363658032,1748800249329,-2445.88781194,0.0002051,2]
[363658034,1748800249340,-3437.60975399,0.00020521,3]
[363658036,1748800249350,-1583.33,0.00020547,2]
[363658038,1748800249361,-505.74,0.00020547,2]
[363658040,1748800249371,-773.78,0.00020547,2]
[363658042,1748800249381,-469.54,0.00020547,2]
[363658044,1748800249392,-535.36,0.00020547,2]
[363658046,1748800249402,-430.0,0.00020547,2]
[363658048,1748800249413,-705.3,0.00020547,2]
[363658050,1748800249423,-798.38,0.00020547,2]
[363658052,1748800249432,-537.89,0.00020547,2]
[363658054,1748800249443,-1192.28,0.00020547,2]
[363658056,1748800249453,-741.74,0.00020547,2]
[363658058,1748800249462,-1144.57,0.00020547,2]
[363658060,1748800249472,-335.92,0.00020547,2]
[363658062,1748800249482,-276.74373577,0.00020596,2]
[363658064,1748800249492,-281.32,0.000206,2]
[363658066,1748800249501,-440.18,0.000206,2]
[363658068,1748800249511,-24854.46,0.000206,2]
[363658070,1748800249521,-2900.34,0.000206,2]
[363658072,1748800249530,-500.0,0.0002064,2]
[363658074,1748800249540,-500.0,0.00020725,2]
[363658076,1748800249550,-3437.60975399,0.00020762,3]
[363658078,1748800249560,-500.0,0.00020787,2]
[363658080,1748800249569,-649.21402904,0.00020787,2]
[363658082,1748800249579,-151.0,0.000208,4]
[363658084,1748800249589,-1583.33,0.00020821,2]
[363658087,1748800249605,-505.74,0.00020821,2]
[363658088,1748800249615,-773.78,0.00020821,2]
[363658091,1748800249625,-469.54,0.00020821,2]
[363658092,1748800249635,-430.0,0.00020821,2]
[363658095,1748800249645,-705.3,0.00020821,2]
[363658097,1748800249655,-798.38,0.00020821,2]
[363658099,1748800249664,-537.89,0.00020821,2]
[363658101,1748800249674,-1192.28,0.00020821,2]
[363658103,1748800249687,-741.74,0.00020821,2]
[363658105,1748800249698,-1144.57,0.00020821,2]
[363658107,1748800249708,-1000.54762423,0.00020989,2]
[363658109,1748800249718,-3437.60975399,0.00021003,4]
[363658111,1748800249727,-1583.33,0.00021095,2]
[363658113,1748800249738,-505.74,0.00021095,2]
[363658115,1748800249748,-773.78,0.00021095,2]
[363658117,1748800249758,-469.54,0.00021095,2]
[363658119,1748800249767,-430.0,0.00021095,2]
[363658121,1748800249777,-705.3,0.00021095,2]
[363658123,1748800249787,-798.38,0.00021095,2]
[363658125,1748800249797,-537.89,0.00021095,2]
[363658127,1748800249807,-1192.28,0.00021095,2]
[363658129,1748800249816,-741.74,0.00021095,2]
[363658131,1748800249826,-1144.57,0.00021095,2]
[363658133,1748800249835,-151.0,0.000211,4]
[363658135,1748800249846,-3437.60975399,0.00021245,4]
[363658137,1748800249856,-359.78747334,0.00021273,2]
[363658140,1748800249867,-823.0,0.0002133,2]
[363658142,1748800249876,-1583.33,0.00021369,2]
[363658144,1748800249886,-505.74,0.00021369,2]
[363658146,1748800249896,-469.54,0.00021369,2]
[363658148,1748800249905,-773.78,0.00021369,2]
[363658150,1748800249915,-430.0,0.00021369,2]
[363658152,1748800249925,-705.3,0.00021369,2]
[363658154,1748800249934,-798.38,0.00021369,2]
[363658156,1748800249944,-537.89,0.00021369,2]
[363658158,1748800249954,-1192.28,0.00021369,2]
[363658160,1748800249965,-741.74,0.00021369,2]
[363658162,1748800249974,-1144.57,0.00021369,2]
[363658164,1748800249985,-151.0,0.000214,4]
[363658166,1748800249994,-184.0,0.00021444,2]
[363658168,1748800250003,-3437.60975399,0.00021486,5]
[363658170,1748800250014,-151.0,0.000216,4]
[363658172,1748800250024,-1583.33,0.00021643,2]
[363658174,1748800250034,-505.74,0.00021643,2]
[363658176,1748800250043,-773.78,0.00021643,2]
[363658189,1748800250149,-469.54,0.00021643,2]
[363658191,1748800250160,-209.11,0.00021643,2]
[363658193,1748800250171,-705.3,0.00021643,2]
[363658195,1748800250181,-798.38,0.00021643,2]
[363658197,1748800250191,-537.89,0.00021643,2]
[363658199,1748800250202,-1192.28,0.00021643,2]
[363658201,1748800250212,-741.74,0.00021643,2]
[363658203,1748800250222,-1144.57,0.00021643,2]
[363658206,1748800250231,-276.74373577,0.00021662,2]
[363658208,1748800250242,-151.0,0.000217,3]
[363658210,1748800250252,-3437.60975399,0.00021728,5]
[363658212,1748800250262,-3117.0,0.00021766,2]
[363658214,1748800250272,-3695.69825899,0.0002178,2]
[363658215,1748800250282,-2350.74,0.00021829,2]
[363658217,1748800250291,-2000.0,0.0002189,2]
[363658218,1748800250301,-2000.0,0.0002189,2]
[363658220,1748800250311,-2000.0,0.0002189,2]
[363658222,1748800250320,-2000.0,0.0002189,2]
[363658224,1748800250330,-2000.0,0.0002189,2]
[363658226,1748800250339,-2000.0,0.0002189,2]
[363658228,1748800250349,-2000.0,0.0002189,2]
[363658230,1748800250359,-2000.0,0.0002189,2]
[363658232,1748800250369,-2000.0,0.0002189,2]
[363658234,1748800250378,-2000.0,0.0002189,2]
[363658236,1748800250388,-2000.0,0.0002189,2]
[363658238,1748800250397,-2000.0,0.0002189,2]
[363658240,1748800250407,-2000.0,0.0002189,2]
[363658242,1748800250416,-2000.0,0.0002189,2]
[363658244,1748800250426,-2000.0,0.0002189,2]
[363658246,1748800250436,-2000.0,0.0002189,2]
[363658248,1748800250446,-2000.0,0.0002189,2]
[363658250,1748800250455,-2000.0,0.0002189,2]
[363658252,1748800250465,-2000.0,0.0002189,2]
[363658253,1748800250475,-2000.0,0.0002189,2]
[363658254,1748800250485,-364.3782178,0.0002189,2]
[363658255,1748800250495,-24854.46,0.000219,2]
[363658256,1748800250505,-2445.88781194,0.000219,2]
[363658257,1748800250514,-2000.0,0.00021917,2]
[363658258,1748800250524,-1583.33,0.00021917,2]
[363658259,1748800250533,-505.74,0.00021917,2]
[363658260,1748800250543,-773.78,0.00021917,2]
[363658261,1748800250553,-469.54,0.00021917,2]
[363658262,1748800250562,-705.3,0.00021917,2]
[363658263,1748800250572,-798.38,0.00021917,2]
[363658264,1748800250582,-537.89,0.00021917,2]
[363658265,1748800250591,-1192.28,0.00021917,2]
[363658266,1748800250604,-741.74,0.00021917,2]
[363658267,1748800250614,-1144.57,0.00021917,2]
[363658268,1748800250624,-150.0,0.00021918,2]
[363658269,1748800250634,-3437.60975399,0.00021969,6]
[363658270,1748800250643,-151.0,0.00022,7]
[363658271,1748800250653,-151.0,0.00022,7]
[363658272,1748800250662,-281.32,0.00022,7]
[363658273,1748800250672,-440.18,0.00022,7]
[363658274,1748800250682,-198.0,0.00022,2]
[363658275,1748800250692,-124215.4,0.00022,7]
[363658276,1748800250702,-151.0,0.00022,7]
[363658277,1748800250712,-151.0,0.00022,7]
[363658278,1748800250724,-2900.34,0.00022,2]
[363658279,1748800250734,-154.67873888,0.00022184,2]
[363658280,1748800250744,-207.4,0.00022184,2]
[363658281,1748800250754,-300.0,0.00022184,2]